Cogmind - Beta 14 @@@ ROGUE MODE // 2024.10.04 @ 19:43:51 Player: Rachel.wav Result: Destroyed by D-53 Grenadier with Mini Grenade Launcher Performance ------------- Evolutions (0) 0 Regions Visited (4) 800 Robots Destroyed (7) 35 Value Destroyed (145) 145 Prototype IDs (0) 0 Alien Tech Used (0) 0 Bonus (0) 0 TOTAL SCORE: 980 Bonus ------- None Cogmind --------- Core Integrity 0/250 Matter 300/300 Energy 250/250 System Corruption 7% Temperature Cool (0) Movement Core (450) Ox8 Location -9/Mines Parts ------- > --- POWER (1) -------- Ion Engine > --- PROPULSION (2) --- (None) > --- UTILITY (2) ------ Large Storage Unit > --- WEAPON (2) ------- (None) > --- INVENTORY (15) --- Light Nuclear Core Aluminum Leg Wheel Improved Heat Sink High-capacity Matter Pod (200) ECM Suite EM Pulse Gun Light Assault Rifle Grenade Launcher Peak State ------------ > --- POWER ------------ Light Nuclear Core > --- PROPULSION ------- Aluminum Leg Compact Wheel > --- UTILITY ---------- Large Storage Unit Light Armor Plating > --- WEAPON ----------- Assault Rifle Assault Rifle > --- INVENTORY -------- Ion Engine Ion Engine Aluminum Leg Wheel Compact Wheel High-capacity Matter Pod ECM Suite EM Pulse Gun Light Assault Rifle Grenade Launcher [Rating: 10] Favorites ----------- Power Ion Engine Engine Ion Engine Power Core Light Nuclear Core Propulsion Aluminum Leg Leg Aluminum Leg Wheel Compact Wheel Utility Large Storage Unit Device ECM Suite Storage Large Storage Unit Protection Light Armor Plating Weapon Assault Rifle Ballistic Gun Assault Rifle Build | -11 -10 -10 -10 -9 ------- Run | Yrd Mat Min Exi Min Slots Evolved . | . . . . . Power . | . . . . . Propulsion . | . . . . . Utility . | . . . . . Weapon . | . . . . . Parts Attached 14 | 6 4 . . 4 Power 3 | 1 . . . 2 Engine 2 | 1 . . . 1 Core 1 | . . . . 1 Reactor . | . . . . . Propulsion 4 | 2 . . . 2 Treads . | . . . . . Leg 2 | 1 . . . 1 Wheel 2 | 1 . . . 1 Hover . | . . . . . Flight . | . . . . . Utility 5 | 1 4 . . . Device 1 | . 1 . . . Storage 3 | 1 2 . . . Processor . | . . . . . Hackware . | . . . . . Protection 1 | . 1 . . . Artifact . | . . . . . Weapon 2 | 2 . . . . Energy Gun . | . . . . . Energy Cannon . | . . . . . Ballistic Gun 2 | 2 . . . . Ballistic Cannon . | . . . . . Launcher . | . . . . . Special Weapon . | . . . . . Impact Weapon . | . . . . . Slashing Weapon . | . . . . . Piercing Weapon . | . . . . . Special Melee Weapon . | . . . . . Unidentified Prototypes . | . . . . . Parts Lost 5 | . . . . 5 Power . | . . . . . Propulsion 2 | . . . . 2 Utility 1 | . . . . 1 Weapon 2 | . . . . 2 Highest Loss Streak 5 | . . . . 5 To Critical Strikes . | . . . . . Average Slot Usage (%) 98 | . 97 100 100 97 Engine 13 | . 14 14 14 13 Leg 13 | . 14 14 14 13 Wheel 13 | . 14 14 14 13 Device 1 | . 6 . . . Storage 14 | . 15 14 14 14 Protection 11 | . 3 14 14 13 Ballistic Gun 27 | . 28 28 28 27 Peak Build Rating 10 | 6 7 7 8 10 Average Rating 6 | 5 6 7 7 7 On Entrance 5 | . 6 7 7 7 Naked Turns . | . . . . . Heaviest Build 32 | 14 32 32 32 32 Greatest Support 16 | 16 16 16 16 16 Greatest Overweight (x) 8 | 1 1 1 1 8 Average Overweight (x) . | . . 1 1 1 Largest Inventory Capacity 15 | 8 15 15 15 15 Average Capacity 13 | 7 10 15 15 15 Most Carried 11 | 7 8 9 10 11 Average Carried 8 | 4 7 8 9 9 Final Capacity 15 | 8 15 15 15 15 Final Carried 9 | 6 8 9 9 9 Class Distribution -------------------- 100% | Mutant Dominant Class ---------------- Mutant | -10/Materials Mutant | -10/Mines Mutant | -10/Exiles Mutant | -9/Mines Resources | -11 -10 -10 -10 -9 ----------- Run | Yrd Mat Min Exi Min Matter Collected 466 | 296 30 34 . 106 Remotely . | . . . . . Salvage Created 278 | 104 30 20 . 124 Parts 19 | 6 4 2 . 7 Haulers Intercepted . | . . . . . Recyclers Shooed . | . . . . . Parts Field Recycled . | . . . . . Retrieved Matter . | . . . . . Parts Self-Destructed . | . . . . . Prevented . | . . . . . Kills | -11 -10 -10 -10 -9 ------- Run | Yrd Mat Min Exi Min Combat Hostiles Destroyed 3 | . . . . 3 Guns 3 | . . . . 3 Classes Destroyed 5 | 2 1 1 . 1 Worker 1 | . . 1 . . Tunneler 1 | 1 . . . . Recycler 1 | 1 . . . . Watcher 1 | . 1 . . . Grunt 3 | . . . . 3 Best Kill Streak 3 | 2 1 1 . 3 Combat Bots Only 3 | . . . . 3 Max Kills in Single Turn 1 | 1 1 1 . 1 Gunslinging . | . . . . . Exploded . | . . . . . Melee . | . . . . . Uniques/NPCs Destroyed . | . . . . . Combat | -11 -10 -10 -10 -9 -------- Run | Yrd Mat Min Exi Min Hostile Shots Fired 69 | . . . . 69 Missed 20 | . . . . 20 Damage Taken 912 | . . . . 912 Core 261 | . . . . 261 Absorbed by Shields . | . . . . . Core Remaining (%) 100 | 100 . . . . Volleys Fired 25 | 6 1 3 . 15 Largest 2 | 2 2 2 . 2 Hottest 40 | 40 40 40 . 40 Shots Fired 50 | 12 2 6 . 30 Gun 50 | 12 2 6 . 30 Cannon . | . . . . . Launcher . | . . . . . Special . | . . . . . Kinetic 50 | 12 2 6 . 30 Thermal . | . . . . . Explosive . | . . . . . Electromagnetic . | . . . . . Robot Hit Streak 17 | 4 2 1 . 17 Robot Miss Streak 2 | 2 . 1 . 2 Penetration Max . | . . . . . Secondary Targets . | . . . . . Shots Hit Robots 33 | 6 1 2 . 24 Core Hits 13 | 3 1 1 . 8 Critical Kills . | . . . . . Critical Parts Destroyed . | . . . . . Critical Strikes . | . . . . . Melee Attacks . | . . . . . Impact . | . . . . . Slashing . | . . . . . Piercing . | . . . . . Sneak Attacks . | . . . . . Combat Hostiles . | . . . . . Follow-up Attacks . | . . . . . Damage Inflicted 480 | 86 12 38 . 344 Guns 480 | 86 12 38 . 344 Cannons . | . . . . . Explosions . | . . . . . Melee . | . . . . . Ramming . | . . . . . Kinetic 480 | 86 12 38 . 344 Thermal . | . . . . . Explosive . | . . . . . Electromagnetic . | . . . . . Impact . | . . . . . Slashing . | . . . . . Piercing . | . . . . . Highest Corruption 7 | . . . . 7 Average Corruption 5 | . . . . 5 Corruption Purged . | . . . . . Corruption Blocked . | . . . . . Effects 1 | . . . . 1 Message Errors 1 | . . . . 1 Overload Shots . | . . . . . Overflow Damage . | . . . . . Projectiles . | . . . . . Explosions . | . . . . . Melee . | . . . . . Knockbacks . | . . . . . Impact . | . . . . . Kinetic . | . . . . . Secondary . | . . . . . Self-Inflicted Damage . | . . . . . Shots . | . . . . . Rammed . | . . . . . Targets Rammed . | . . . . . Kicked . | . . . . . Crushed . | . . . . . Highest Temperature 41 | . . . . 41 Average Temperature 26 | . . . . 26 Received Heat Transfer 147 | . . . . 147 Siege Activations . | . . . . . Robots Corrupted . | . . . . . Combat Hostiles . | . . . . . Parts Fried . | . . . . . Impact Corruptions . | . . . . . Robots Melted . | . . . . . Combat Hostiles . | . . . . . Parts Melted . | . . . . . Heat Transferred . | . . . . . Parts Sabotaged . | . . . . . Parts Stolen . | . . . . . Parts Stripped . | . . . . . Power Chain Reactions . | . . . . . Alert | -11 -10 -10 -10 -9 ------- Run | Yrd Mat Min Exi Min Peak Influence 85 | 10 58 27 . 85 Initial 22 | . 6 22 . . Average 34 | 3 38 23 . 58 Maximum Alert Level . | . . . . . Low Security (%) 100 | 100 100 100 . 100 Level 1 . | . . . . . Level 2 . | . . . . . Level 3 . | . . . . . Level 4 . | . . . . . Level 5 . | . . . . . High Security . | . . . . . Max Security . | . . . . . Squads Dispatched . | . . . . . Investigation . | . . . . . Extermination . | . . . . . Reinforcement . | . . . . . Assault . | . . . . . Garrison . | . . . . . Intercept . | . . . . . Searches Triggered . | . . . . . Construction Impeded . | . . . . . Haulers Reinforced . | . . . . . Active Scanning Responses . | . . . . . Cargo Convoy Interrupts . | . . . . . Stealth | -11 -10 -10 -10 -9 --------- Run | Yrd Mat Min Exi Min Distress Signals . | . . . . . Communications Jammed . | . . . . . Distress Signals . | . . . . . Times Spotted 25 | . 3 . . 22 Peak Tracking Total 20 | . 2 . . 20 Tactical Retreats . | . . . . . Traps | -11 -10 -10 -10 -9 ------- Run | Yrd Mat Min Exi Min Traps Triggered . | . . . . . Indirectly . | . . . . . Trap Hack Attempts . | . . . . . Triggered . | . . . . . Disarmed . | . . . . . Reprogrammed . | . . . . . Reused . | . . . . . Traps Extracted . | . . . . . Installed . | . . . . . Triggered . | . . . . . Machines | -11 -10 -10 -10 -9 ---------- Run | Yrd Mat Min Exi Min Machines Disabled . | . . . . . Max in Single Turn . | . . . . . Machines Repaired . | . . . . . Machines Dismantled . | . . . . . Machines Sabotaged . | . . . . . Overloaded Fab Kills . | . . . . . Hacking | -11 -10 -10 -10 -9 --------- Run | Yrd Mat Min Exi Min Machines Accessed 6 | . 3 . 3 . Terminals 3 | . 3 . . . Fabricators . | . . . . . Repair Stations . | . . . . . Recycling Units . | . . . . . Scanalyzers . | . . . . . Garrison Access . | . . . . . Total Hacks 32 | . 6 . 26 . Successful 27 | . 1 . 26 . Failed 5 | . 5 . . . Catastrophic 1 | . 1 . . . Database Lockouts . | . . . . . Manual 7 | . 7 . . . Terminals 6 | . 6 . . . Fabricators . | . . . . . Repair Stations . | . . . . . Recycling Units . | . . . . . Scanalyzers . | . . . . . Garrison Access . | . . . . . Terminal Hacks 27 | . 1 . 26 . Record 26 | . . . 26 . Zone Layout 1 | . 1 . . . Fabricator Hacks . | . . . . . Repair Station Hacks . | . . . . . Recycling Unit Hacks . | . . . . . Scanalyzer . | . . . . . Garrison Access Hacks . | . . . . . Unauthorized Hacks . | . . . . . Terminals . | . . . . . Fabricators . | . . . . . Repair Stations . | . . . . . Recycling Units . | . . . . . Scanalyzers . | . . . . . Garrison Access . | . . . . . Data Cores Recovered . | . . . . . Used . | . . . . . Hacking Detections 3 | . 3 . . . Full Trace Events 1 | . 1 . . . Feedback Events . | . . . . . Feedback Blocked . | . . . . . Robot Schematics Acquired . | . . . . . Robots Built . | . . . . . Authchips . | . . . . . Time . | . . . . . Total Robot Build Rating . | . . . . . Part Schematics Acquired . | . . . . . Parts Built . | . . . . . Authchips . | . . . . . Time . | . . . . . Total Part Build Rating . | . . . . . Parts Repaired . | . . . . . Time . | . . . . . Parts Recycled . | . . . . . Recycled Matter . | . . . . . Retrieved Matter . | . . . . . Retrieved Components . | . . . . . Parts Scanalyzed . | . . . . . Part Schematics Acquired . | . . . . . Parts Damaged . | . . . . . Bothacking | -11 -10 -10 -10 -9 ------------ Run | Yrd Mat Min Exi Min Used RIF Installer . | . . . . . Robots Hacked . | . . . . . Non-combat . | . . . . . Combat . | . . . . . Robot Hacks Applied . | . . . . . Relay Couplers Released . | . . . . . Fabnet Peak Effective % . | . . . . . Robots Rewired . | . . . . . Allies Hacked . | . . . . . Hacks Repelled . | . . . . . Allies | -11 -10 -10 -10 -9 -------- Run | Yrd Mat Min Exi Min Total Allies 3 | . . . . 3 Largest Group 3 | . . . . 3 Highest-Rated Group 40 | . . . . 40 Highest-Rated Ally 16 | . . . . 16 Total Orders . | . . . . . Ally Attacks 6 | . . . . 6 Total Damage 45 | . . . . 45 Kills . | . . . . . Allies Corrupted 1 | . . . . 1 Allies Melted . | . . . . . Intel | -11 -10 -10 -10 -9 ------- Run | Yrd Mat Min Exi Min Robot Analysis Total . | . . . . . Derelict Logs Recovered 2 | . . 1 . 1 Drone Launches . | . . . . . Drone Recoveries . | . . . . . Exploration | -11 -10 -10 -10 -9 ------------- Run | Yrd Mat Min Exi Min Turns Passed 1356 | 136 300 209 483 228 Spaces Moved 1106 | 100 269 174 418 145 Core 6 | 5 . . . 1 Treads . | . . . . . Legs . | . . . . . Wheels 1100 | 95 269 174 418 144 Hover . | . . . . . Flight . | . . . . . Fastest Speed 50 | 50 100 115 115 115 Average Speed 111 | 99 105 115 115 117 Slowest Speed 450 | 100 115 115 115 450 Overloaded Moves . | . . . . . Propulsion Burnouts . | . . . . . Robots Hopped . | . . . . . Cave-ins Triggered . | . . . . . Exploration Rate (%) 45 | 6 51 37 78 54 Regions Visited 4 Branch Regions 3 Pre-discovered Areas 1 | . . 1 . . Known Exits Taken . | . . . . . Unknown Exits Taken 4 | 1 1 1 1 . Scrap Searched . | . . . . . Spaces Dug . | . . . . . Terrain Destroyed . | . . . . . Melee . | . . . . . Projectile . | . . . . . AOE . | . . . . . Terrain Rammed . | . . . . . Walls Destroyed . | . . . . . Machines Disabled . | . . . . . Actions | -11 -10 -10 -10 -9 --------- Run | Yrd Mat Min Exi Min Total 1177 | 125 283 177 420 172 Wait 2 | . . . . 2 Move 1102 | 99 268 173 417 145 Hop . | . . . . . Pick Up 24 | 13 6 1 1 3 Fast Attach 1 | . 1 . . . Attach 7 | 6 1 . . . Detach . | . . . . . Swap 6 | . 2 . . 4 Drop 9 | 1 4 . 1 3 Fire 25 | 6 1 3 . 15 Melee . | . . . . . Ram . | . . . . . Kick . | . . . . . Crush . | . . . . . Escape Stasis . | . . . . . Rewire 1 | . . . 1 . Trap . | . . . . . Miscellaneous . | . . . . . Route ------- -11/Scrapyard -10/Materials (discovered 3 exits: [*Mat x2] / [*Min]) -10/Mines (discovered 2 exits: [*Mat] / *Exi) -10/Exiles -9/Mines History --------- Turn | Location | Event 12 | -11/Scrapyard | Discovered new exit (range 16) 137 | -11/Scrapyard | Entered Materials 253 | -10/Materials | Discovered new exit (range 11) 254 | -10/Materials | Discovered new exit (range 13) 307 | -10/Materials | Build established: Mutant 376 | -10/Materials | Discovered new exit (range 6) 437 | -10/Materials | Entered Mines 455 | -10/Mines | Discovered new exit (range 9) 580 | -10/Mines | Learned location of Mines (-9) 640 | -10/Mines | Deemed a non-threat by the Exiles lab entrance 641 | -10/Mines | Discovered new exit (range 5) 646 | -10/Mines | Entered Exiles 669 | -10/Exiles | Discovered new exit (range 14) 703 | -10/Exiles | Met 8R-AWN 722 | -10/Exiles | Met EX-HEX 762 | -10/Exiles | Met EX-BIN 876 | -10/Exiles | Met EX-DEC 915 | -10/Exiles | Visited The Gauntlet 1129 | -10/Exiles | Entered Mines 1198 | -9/Mines | Learned location of 1 exit from Proximity Caves 1228 | -9/Mines | Assisted by bots powering up and referring to "LRC-V3" 1295 | -9/Mines | Assembled infested the area 1353 | -9/Mines | Core integrity fell below 50% 1357 | -9/Mines | Core integrity fell below 20% 1357 | -9/Mines | Destroyed by D-53 Grenadier with Mini Grenade Launcher Last Messages --------------- effect. 01330_ Trooper 2b system terminally corrupted. 01332_ Mercenary 2a destroyed. 01341_ Com. Wheel destroyed. 01341_ System corrupted by crushing effect (+4). 01347_ Aluminum Leg destroyed. 01347_ System corrupted by crushing effect (+3). 01347_ Lgt. Armor Plating destroyed. 01348_ Destroyed Asb. Hover Unit. 01348_ Assault Rifle destroyed. 01351_ as-87768 destroyed. 01351_ as-62357 destroyed. 01351_ as-74664 destroyed. 01351_ as-63900 destroyed. 01351_ as-33101 destroyed. 01351_ as-07300 destroyed. 01352_ as-65528 destroyed. 01352_ as-89618 destroyed. 01353_ W9R3KK4YXOAPW,6R>S5D2HLV:J1BR 01353_ as-84641 destroyed. Map ----- +----------------------------------------------------+ | ??????????????????????????????????? | | ??????????????????????????????????? | | ??????????????????????????????????? | | ??????????????????????????????????? | | ??????????????????????????????????? | | ??????????????????????????????????? | | ??????????????????????????????????? | | ??????????????????????????????????? | | ??????????????????????????????????? | | ??????????????????????????????????? | | ??????????????????????????????????? | | ??????????????????????????????????? | | ??????????????????????????????????? | | ??????????????????????????????????? | | ??????????????????????????????????? | | ??????????????????????????????????? | | ??????????????????????????????????? | | ?????????## ??????????????????????? | | ?????????# ???????????######????? | | ????????# ??????##### #????? | | ????????# ????## # ##???? | | ?????????# ????# #???? | | ?????????# ???## #???? | | ????????## #??# #???? | | ????????# ### #???? | | ????????# @ #???? | | ????????# #???? | | ???????# dd ##???? | | ???????# ### #????? | | ????????# ?????## ## # ##????? | | ??????????????????# ####?###?????? | | ??????????????????# #????????????? | | ??????????????????# #????????????? | | ?????????????###### #????????????? | | ##???????????# % #????????????? | | ##??????????# #### #????????????? | | #??????????# #??# #????????????? | | #??#?????### ##?# #????????????? | | ##??# #### #?#$ #????????????? | | ##???# #?# #????????????? | | ##???# ##?# #????????????? | | #???####### ##??# #????????????? | | #????????## ##??# #????????????? | | #????????# ##?#% ????????????? | | ##????????# ##? ????????????? | | #????????## #? ????????????? | | ##??###### ##?# ????????????? | | #### ###??? ????????????? | | ##????? ????????????? | | #??????# ????????????? | +----------------------------------------------------+ Best States ------------- Heat Dissipation 25 Energy Generation 14 Energy Capacity 450 Matter Stores 300 Matter Capacity 300 Sight Range 16 Terrain Scan Density 10 ECM Strength 1 Armor Coverage 150 Evasion (%) 40 Item Schematics ----------------- None Robot Schematics ------------------ None Fabricated ------------ Nothing Alien Tech Used ----------------- None Achievements -------------- Hunted Librarian Tourist Challenges ------------ None Game ------ Seed ModifiedDynamicExpander Manual? 0 Play Time 00:14:16 Cumulative 1.4 hours Start 2024.10.04 @ 19:29:54 End 2024.10.04 @ 19:43:51 Sessions 1 Manual Loads 0 Difficulty Rogue Special Mode None Game No. 3 Rogue 3 Adventurer 0 Explorer 0 Win Type - Total 0 Types 0/0/0/0/0/0/0/0/0 Lore% 2 Gallery% 5 Achievement% 4 Wizard Run 0 Options --------- Layout 1 ASCII 0 Keyboard 0 Movement Mouse Keybinds 0 Fullscreen 1 Font 24/Smallcaps Map View 50x35 Zoom Use 0% Tactical HUD 1 Map Filters NONE Filters NONE Steam 1 RUN: 9ce868d3-a66c-42df-a07d-6643d0ba8796